fUST/lending_fUST_20250426
["ID","MTS","AMOUNT","RATE_DAILY","PERIOD"]
[358986167,1745606534518,-153.18,0.000262,31]
[358986168,1745606534580,-153.18,0.000262,31]
[358986169,1745606534689,-1154.799998,0.00029589,120]
[358986171,1745606642461,153.44,0.000253,31]
[358986172,1745606642513,153.44,0.000253,31]
[358986173,1745606642571,153.44,0.000253,31]
[358986174,1745606642639,153.44,0.000253,31]
[358986175,1745606642703,153.44,0.000249,31]
[358986176,1745606642752,153.44,0.000249,31]
[358986177,1745606642813,153.44,0.000249,31]
[358986178,1745606642877,151.36,0.000249,31]
[358986179,1745606642911,2.08,0.000249,31]
[358986180,1745606693933,-237.04881498,0.00039703,10]
[358986181,1745606693959,-1079.92736448,0.00039703,10]
[358986182,1745606693985,-462.44955019,0.00039703,7]
[358986183,1745606694191,-200.0,0.00039703,10]
[358986184,1745606694217,-498.0,0.00039703,7]
[358986185,1745606694244,-152.66051468,0.00039703,7]
[358986186,1745606694270,-396.9411603,0.00039703,20]
[358986187,1745606694296,-4735.29222901,0.00039703,7]
[358986189,1745606849141,-1000.0,0.00016203,2]
[358986190,1745606849164,-210.7854584,0.00016303,2]
[358986191,1745606849186,-1688.28460907,0.00016328,2]
[358986192,1745606849208,-207.87143176,0.00016338,2]
[358986193,1745606849230,-300.0,0.00016396,2]
[358986194,1745606849251,-248.6023329,0.00016397,2]
[358986195,1745606849272,-411.43150359,0.00016397,2]
[358986196,1745606849293,-500.0,0.00016397,2]
[358986197,1745606849315,-542.2,0.00016397,2]
[358986198,1745606849337,-500.0,0.00016397,2]
[358986199,1745606849359,-500.0,0.00016397,2]
[358986200,1745606849390,-500.0,0.00016397,2]
[358986201,1745606849412,-500.0,0.00016397,2]
[358986202,1745606849440,-429.90293652,0.00016397,2]
[358986203,1745606852104,-170.5803361,0.00016238,2]
[358986204,1745606852125,-170.58033606,0.00016253,2]
[358986205,1745606852146,-170.58033606,0.00016268,2]
[358986206,1745606852168,-170.58033606,0.00016282,2]
[358986207,1745606852196,-70.09706348,0.00016397,2]
[358986208,1745606852218,-80.36410848,0.00016397,2]
[358986268,1745607032866,-189.7069125,0.00016303,2]
[358986270,1745607032876,-252.19957868,0.00016338,2]
[358986272,1745607032885,-300.0,0.00016395,2]
[358986274,1745607032895,-632.46791857,0.00016395,2]
[358986276,1745607032906,-267.53208143,0.00016395,2]
[358986278,1745607032915,-300.0,0.00016395,2]
[358986280,1745607032925,-711.66048908,0.000164,2]
[358986350,1745607038620,-500.0,0.00016395,2]
[358986352,1745607038630,-243.59819011,0.00016395,2]
[358986353,1745607038680,-256.40180989,0.00016395,2]
[358986354,1745607038690,-20.97845111,0.00016395,2]
[358986355,1745607038701,-479.02154889,0.00016395,2]
[358986356,1745607038711,-145.18336723,0.00016395,2]
[358986357,1745607038723,-354.81663277,0.00016395,2]
[358986358,1745607038732,-500.0,0.00016395,2]
[358986359,1745607038741,-526.358321,0.00016395,2]
[358986361,1745607038751,-167.97487344,0.00016395,2]
[358986363,1745607038764,-332.02512656,0.00016395,2]
[358986364,1745607038774,-500.0,0.00016395,2]
[358986365,1745607038783,-500.0,0.00016395,2]
[358986366,1745607038792,-500.0,0.00016395,2]
[358986367,1745607038801,-52.6951575,0.00016395,2]
[358986381,1745607041230,-447.3048425,0.00016395,2]
[358986382,1745607041240,-263.56283275,0.00016395,2]
[358986449,1745607043911,-236.43716725,0.00016395,2]
[358986451,1745607043921,-79.63151272,0.00016395,2]
[358986481,1745607156510,19438.8204971,0.00025,30]
[358986484,1745607668124,2100.0,0.00015,2]
[358986485,1745607668654,10052.4252979,0.00015,2]
[358986487,1745607916017,-153.5,0.000259,31]
[358986488,1745607916568,-153.5,0.000259,31]
[358986489,1745607916618,-153.5,0.000261,31]
[358986490,1745607916661,-153.5,0.000261,31]
[358986491,1745607916705,-153.5,0.000262,31]
[358986492,1745607916748,-153.5,0.000262,31]
[358986493,1745607916791,-153.5,0.000264,31]
[358986494,1745607916832,-153.5,0.000264,31]
[358986495,1745607916879,-153.5,0.000266,31]
[358986496,1745607937815,-15839.45719165,0.0002,20]
[358986497,1745607942253,-200.0,0.00023,11]
[358986498,1745607942294,-200.0,0.00024,14]
[358986499,1745607942332,-1000.0,0.00024658,14]
[358986500,1745607942366,-1000.0,0.00024658,14]
[358986501,1745607942398,-1000.0,0.00024658,14]
[358986502,1745607942430,-1000.0,0.00024658,14]
[358986503,1745607942462,-1000.0,0.00024658,14]
[358986504,1745607942493,-1000.0,0.00024658,14]
[358986505,1745607942525,-1000.0,0.00024658,14]
[358986506,1745607942556,-1000.0,0.00024658,14]
[358986507,1745607942589,-1000.0,0.00024658,14]
[358986508,1745607942620,-1000.0,0.00024658,14]
[358986509,1745607942652,-224.27751644,0.00025,14]
[358986510,1745607942682,-251.6,0.00025,17]
[358986511,1745608037124,-1172.011237,0.00015396,2]
[358986512,1745608037147,-250.0,0.00015422,2]
[358986513,1745608037169,-222.5653641,0.00015924,2]
[358986514,1745608037189,-170.7362213,0.00016273,2]
[358986515,1745608037215,-250.0,0.0001633,2]
[358986516,1745608037236,-282.95944096,0.00016338,2]
[358986517,1745608037259,-252.57621054,0.00016386,2]
[358986518,1745608038141,-47.42378946,0.00016386,2]
[358986519,1745608038166,-500.0,0.00016387,2]
[358986520,1745608038195,-500.0,0.00016387,2]
[358986521,1745608038224,-378.65974069,0.00016387,2]
[358986563,1745608231805,-153.6625991,0.00016273,2]
[358986565,1745608231815,-300.0,0.00016385,2]
[358986567,1745608231824,-351.0,0.00016385,2]
[358986569,1745608231835,-8244.66835972,0.000164,2]
[358986571,1745608231844,-229.18592572,0.00016427,2]
[358986573,1745608231854,-227.68508232,0.00016427,2]
[358986575,1745608231864,-546.331057,0.00016427,2]
[358986577,1745608231873,-500.0,0.00016428,3]
[358986578,1745608231883,-151.0,0.00016428,2]
[358986580,1745608231892,-255.584216,0.00016428,2]
[358986581,1745608231902,-151.0,0.00016428,2]
[358986584,1745608231912,-151.0,0.00016428,2]
[358986588,1745608231922,-151.0,0.00016428,2]
[358986589,1745608231931,-151.0,0.00016428,2]
[358986590,1745608231942,-156.416014,0.00016428,2]
[358986592,1745608231952,-151.0,0.00016428,2]
[358986593,1745608231961,-151.0,0.00016428,2]
[358986595,1745608231971,-151.0,0.00016428,2]
[358986597,1745608231980,-259.94351,0.00016428,2]
[358986599,1745608231989,-151.0,0.00016428,2]
[358986601,1745608231999,-151.0,0.00016428,2]
[358986603,1745608232009,-151.0,0.00016428,2]
[358986605,1745608232018,-151.0,0.00016428,2]
[358986607,1745608232028,-333.113204,0.00016428,2]
[358986608,1745608232037,-333.113204,0.00016428,2]
[358986610,1745608232047,-333.113204,0.00016428,2]
[358986612,1745608232056,-333.113204,0.00016428,2]
[358986613,1745608232066,-333.113204,0.00016428,2]
[358986614,1745608232076,-333.113204,0.00016428,2]
[358986615,1745608232086,-333.113204,0.00016428,2]
[358986616,1745608232096,-333.113204,0.00016428,2]
[358986617,1745608232106,-151.0,0.00016428,2]
[358986618,1745608232115,-151.0,0.00016428,2]
[358986619,1745608232125,-151.0,0.00016428,2]
[358986620,1745608232135,-1318.646213,0.00016428,2]
[358986621,1745608232144,-1318.646213,0.00016428,2]
[358986622,1745608232154,-1318.646213,0.00016428,2]
[358986623,1745608232163,-1318.646213,0.00016428,2]
[358986624,1745608232173,-1318.646213,0.00016428,2]
[358986625,1745608232183,-1318.646213,0.00016428,2]
[358986626,1745608232192,-1318.646213,0.00016428,2]
[358986627,1745608232202,-1318.646213,0.00016428,2]
[358986628,1745608232212,-454.421864,0.00016428,2]
[358986629,1745608232221,-454.421864,0.00016428,2]
[358986630,1745608232231,-454.421864,0.00016428,2]
[358986631,1745608232240,-454.421864,0.00016428,2]
[358986632,1745608232252,-454.421864,0.00016428,2]
[358986633,1745608232262,-454.421864,0.00016428,2]
[358986634,1745608232271,-151.0,0.00016428,2]
[358986635,1745608232281,-151.0,0.00016428,2]
[358986636,1745608232291,-90.12826872,0.00016428,2]
[358986637,1745608232524,-4.45584709,0.00016428,2]
[358986671,1745608237867,-195.35227119,0.00016385,2]
[358986672,1745608237877,-500.0,0.00016385,2]
[358986673,1745608237887,-500.0,0.00016385,2]
[358986674,1745608237898,-500.0,0.00016385,2]
[358986675,1745608237909,-500.0,0.00016385,2]
[358986676,1745608237919,-500.0,0.00016385,2]
[358986678,1745608237929,-171.0321975,0.00016385,2]
[358986680,1745608237938,-500.0,0.00016385,2]
[358986682,1745608237948,-500.0,0.00016385,2]
[358986684,1745608237958,-500.0,0.00016385,2]
[358986686,1745608237968,-500.0,0.00016385,2]
[358986688,1745608237977,-500.0,0.00016385,2]
[358986689,1745608237988,-500.0,0.00016385,2]
[358986690,1745608237999,-500.0,0.00016385,2]
[358986691,1745608238009,-500.0,0.00016385,2]
[358986692,1745608238020,-500.0,0.00016385,2]
[358986693,1745608238029,-500.0,0.00016385,2]
[358986694,1745608238039,-500.0,0.00016385,2]
[358986695,1745608238048,-500.0,0.00016385,2]
[358986696,1745608238058,-56.41588419,0.00016428,2]
[358986697,1745608238067,-151.0,0.00016428,2]
[358986698,1745608238076,-199.100014,0.00016428,2]
[358986699,1745608238086,-151.0,0.00016428,2]
[358986700,1745608238095,-221.958666,0.00016428,2]
[358986701,1745608238105,-221.958666,0.00016428,2]
[358986702,1745608238114,-221.958666,0.00016428,2]
[358986703,1745608238123,-221.958666,0.00016428,2]
[358986704,1745608238133,-221.958666,0.00016428,2]
[358986705,1745608238142,-221.958666,0.00016428,2]
[358986706,1745608238151,-160.0,0.00016428,3]
[358986707,1745608238160,-4774.59772144,0.00016428,3]
[358986728,1745608246006,-151.0,0.00016428,2]
[358986729,1745608246017,-151.0,0.00016428,2]
[358986730,1745608246026,-151.0,0.00016428,2]
[358986731,1745608246036,-21.88623946,0.00016428,2]
[358986732,1745608329849,2500.0,0.00027,30]
[358986734,1745608448674,154.14,0.000269,31]
[358986739,1745609094710,196.9427995,0.00014941,2]
[358986741,1745609173060,262.0419142,0.00014555,2]
[358986742,1745609240189,-197.83608001,0.00015251,2]
[358986743,1745609240211,-300.0,0.0001535,2]
[358986744,1745609240232,-159.37955762,0.00015351,2]
[358986745,1745609240253,-462.83821519,0.00015351,2]
[358986746,1745609240274,-151.18170543,0.00015351,2]
[358986747,1745609245107,-100.21596167,0.00015351,2]
[358986748,1745609245132,-226.98003853,0.00015351,2]
[358986749,1745609250090,-273.01996147,0.00015351,2]
[358986750,1745609250112,-290.16985243,0.00015351,2]
[358986751,1745609250133,-500.0,0.00015351,2]
[358986752,1745609250161,-500.0,0.00015351,2]
[358986753,1745609250183,-500.0,0.00015351,2]
[358986754,1745609250214,-500.0,0.00015351,2]
[358986755,1745609250235,-161.75335627,0.00015351,2]
[358986756,1745609250264,-259.26810221,0.00015351,2]
[358986757,1745609250295,-500.0,0.00015351,2]
[358986758,1745609250325,-500.0,0.00015351,2]
[358986759,1745609250349,-500.0,0.00015351,2]
[358986760,1745609250379,-500.0,0.00015351,2]
[358986761,1745609250410,-500.0,0.00015351,2]
[358986762,1745609250441,-500.0,0.00015351,2]
[358986763,1745609250471,-500.0,0.00015351,2]
[358986764,1745609250501,-500.0,0.00015351,2]
[358986765,1745609250533,-640.15883387,0.00015351,2]
[358986766,1745609250565,-500.0,0.00015351,2]
[358986767,1745609250589,-300.0,0.00015351,2]
[358986768,1745609250614,-1200.0,0.00015351,2]
[358986769,1745609250637,-227.489848,0.00015355,2]
[358986770,1745609250661,-2132.83092836,0.00015355,2]
[358986771,1745609324605,33222.62743813,0.00026,30]
[358986784,1745609432101,-323.98675063,0.0001535,2]
[358986785,1745609432113,-195.47423358,0.0001535,2]
[358986786,1745609432123,-374.13901579,0.0001535,2]
[358986787,1745609432140,-125.86098421,0.0001535,2]
[358986788,1745609432151,-500.0,0.0001535,2]
[358986789,1745609432161,-300.0,0.0001535,2]
[358986790,1745609432172,-300.0,0.0001535,2]
[358986791,1745609432182,-35540.8817507,0.00015351,2]
[358986792,1745609432193,-13912.31503514,0.00015355,2]
[358986793,1745609432202,-160.43014801,0.00016164,2]
[358986794,1745609432212,-883.8588651,0.00016173,2]
[358986795,1745609432222,-153.6625991,0.00016273,2]
[358986796,1745609432232,-4633.82407225,0.00016328,2]
[358986797,1745609432244,-7992.07842527,0.00016328,2]
[358986798,1745609432254,-226.3675528,0.00016338,2]
[358986799,1745609432264,-151.0,0.00016428,2]
[358986800,1745609432273,-199.867923,0.00016428,2]
[358986801,1745609432283,-199.867923,0.00016428,2]
[358986802,1745609432293,-199.867923,0.00016428,2]
[358986803,1745609432303,-199.867923,0.00016428,2]
[358986804,1745609432312,-199.867923,0.00016428,2]
[358986806,1745609432322,-199.867923,0.00016428,2]
[358986808,1745609432330,-151.0,0.00016428,2]
[358986810,1745609432340,-151.0,0.00016428,2]
[358986812,1745609432350,-151.0,0.00016428,2]
[358986813,1745609432359,-791.187727,0.00016428,2]
[358986815,1745609432369,-791.187727,0.00016428,2]
[358986816,1745609432378,-791.187727,0.00016428,2]
[358986817,1745609432390,-791.187727,0.00016428,2]
[358986818,1745609432404,-791.187727,0.00016428,2]
[358986819,1745609432418,-791.187727,0.00016428,2]
[358986820,1745609432431,-151.0,0.00016428,2]
[358986821,1745609432444,-151.0,0.00016428,2]
[358986822,1745609432454,-151.0,0.00016428,2]
[358986823,1745609432466,-318.095305,0.00016428,2]
[358986824,1745609432480,-318.095305,0.00016428,2]
[358986825,1745609432493,-318.095305,0.00016428,2]
[358986826,1745609432504,-318.095305,0.00016428,2]
[358986827,1745609432518,-318.095305,0.00016428,2]
[358986828,1745609432530,-318.095305,0.00016428,2]
[358986829,1745609432542,-207.4,0.00016428,2]
[358986830,1745609432554,-7804.6711048,0.00016428,3]
[358986831,1745609432568,-4084.33995817,0.00016428,3]
[358986832,1745609432581,-9414.08,0.00016428,3]
[358986833,1745609432594,-4707.04,0.00016428,3]
[358986834,1745609432606,-2353.52,0.00016428,3]
[358986835,1745609432618,-1176.76,0.00016428,3]
[358986836,1745609432631,-588.38,0.00016428,3]
[358986837,1745609432643,-294.19,0.00016428,3]
[358986838,1745609432656,-882.57,0.00016428,3]
[358986839,1745609432668,-160.0,0.00016437,2]
[358986841,1745609432681,-151.0,0.00016438,2]
[358986843,1745609432694,-500.0,0.00016438,2]
[358986845,1745609432706,-500.0,0.00016438,2]
[358986847,1745609432718,-500.0,0.00016438,2]
[358986850,1745609432729,-500.0,0.00016438,2]
[358986851,1745609432739,-500.0,0.00016438,2]
[358986852,1745609432751,-361.9657732,0.00016438,2]
[358986853,1745609432766,-500.0,0.00016438,2]
[358986854,1745609432779,-500.0,0.00016438,2]
[358986855,1745609432792,-500.0,0.00016438,2]
[358986856,1745609432804,-500.0,0.00016438,2]
[358986857,1745609432817,-500.0,0.00016438,2]
[358986858,1745609432831,-500.0,0.00016438,2]
[358986859,1745609432843,-500.0,0.00016438,2]
[358986860,1745609432857,-500.0,0.00016438,2]
[358986861,1745609432871,-502.88507804,0.00016438,2]
[358986862,1745609432883,-500.0,0.00016438,2]
[358986863,1745609432895,-500.0,0.00016438,2]
[358986864,1745609432905,-500.0,0.00016438,2]
[358986865,1745609432915,-500.0,0.00016438,2]
[358986866,1745609432926,-500.0,0.00016438,2]
[358986867,1745609432940,-500.0,0.00016438,2]
[358986868,1745609432953,-170.68986066,0.00016438,2]
[358986869,1745609432966,-500.0,0.00016438,2]
[358986870,1745609432979,-500.0,0.00016438,2]
[358986871,1745609432989,-244.61712191,0.00016438,2]
[358986872,1745609433000,-500.0,0.00016438,2]
[358986873,1745609433011,-500.0,0.00016438,2]
[358986874,1745609433021,-500.0,0.00016438,2]
[358986875,1745609433034,-500.0,0.00016438,2]
[358986876,1745609433047,-500.0,0.00016438,2]
[358986877,1745609433059,-186.58195735,0.00016438,2]
[358986878,1745609433069,-500.0,0.00016438,2]
[358986879,1745609433081,-500.0,0.00016438,2]
[358986880,1745609433092,-500.0,0.00016438,2]
[358986881,1745609433103,-500.0,0.00016438,2]
[358986882,1745609433114,-500.0,0.00016438,2]
[358986883,1745609433128,-500.0,0.00016438,2]
[358986884,1745609433140,-500.0,0.00016438,2]
[358986885,1745609433151,-500.0,0.00016438,2]
[358986886,1745609433162,-500.0,0.00016438,2]
[358986887,1745609433174,-500.0,0.00016438,2]
[358986888,1745609433184,-500.0,0.00016438,2]
[358986889,1745609433196,-500.0,0.00016438,2]
[358986890,1745609433207,-500.0,0.00016438,2]
[358986891,1745609433219,-500.0,0.00016438,2]
[358986892,1745609433230,-500.0,0.00016438,2]
[358986893,1745609433241,-500.0,0.00016438,2]
[358986894,1745609433253,-500.0,0.00016438,2]
[358986895,1745609433264,-500.0,0.00016438,2]
[358986896,1745609433276,-626.94,0.00016438,2]
[358986897,1745609433287,-500.0,0.00016438,2]
[358986898,1745609433298,-500.0,0.00016438,2]
[358986899,1745609433309,-500.0,0.00016438,2]
[358986900,1745609433320,-500.0,0.00016438,2]
[358986901,1745609433331,-500.0,0.00016438,2]
[358986902,1745609433342,-500.0,0.00016438,2]
[358986903,1745609433353,-151.0,0.00016438,2]
[358986904,1745609433365,-151.0,0.00016438,2]
[358986905,1745609433377,-500.0,0.00016438,2]
[358986906,1745609433388,-151.89566953,0.00016438,2]
[358986907,1745609433399,-151.0,0.00016438,2]
[358986908,1745609433411,-500.0,0.00016438,2]
[358986909,1745609433422,-500.0,0.00016438,2]
[358986910,1745609433434,-500.0,0.00016438,2]
[358986911,1745609433445,-500.0,0.00016438,2]
[358986912,1745609433456,-500.0,0.00016438,2]
[358986913,1745609433467,-500.0,0.00016438,2]
[358986914,1745609433478,-500.0,0.00016438,2]
[358986915,1745609433490,-199.867923,0.00016438,2]
[358986916,1745609433501,-199.867923,0.00016438,2]
[358986917,1745609433512,-199.867923,0.00016438,2]
[358986918,1745609433524,-199.867923,0.00016438,2]
[358986919,1745609433535,-199.867923,0.00016438,2]
[358986920,1745609433546,-500.0,0.00016438,2]
[358986921,1745609433558,-199.867923,0.00016438,2]
[358986922,1745609433569,-199.867923,0.00016438,2]
[358986923,1745609433580,-199.867923,0.00016438,2]
[358986924,1745609433591,-199.867923,0.00016438,2]
[358986925,1745609433603,-199.867923,0.00016438,2]
[358986926,1745609433614,-199.867923,0.00016438,2]
[358986927,1745609433625,-199.867923,0.00016438,2]
[358986928,1745609433637,-199.867923,0.00016438,2]
[358986929,1745609433648,-199.867919,0.00016438,2]
[358986930,1745609433660,-500.0,0.00016438,2]
[358986931,1745609433671,-500.0,0.00016438,2]
[358986932,1745609433683,-500.37353793,0.00016438,2]
[358986933,1745609433696,-151.12569465,0.00016438,2]
[358986934,1745609433708,-500.0,0.00016438,2]
[358986935,1745609433719,-291.39317495,0.00016438,2]
[358986936,1745609433732,-500.0,0.00016438,2]
[358986937,1745609433744,-500.0,0.00016438,2]
[358986938,1745609433757,-500.0,0.00016438,2]
[358986939,1745609433773,-500.0,0.00016438,2]
[358986940,1745609433784,-155.371067,0.00016438,2]
[358986941,1745609433796,-155.371067,0.00016438,2]
[358986942,1745609433808,-155.37106,0.00016438,2]
[358986943,1745609433819,-500.0,0.00016438,2]
[358986944,1745609433830,-500.0,0.00016438,2]
[358986945,1745609433843,-500.0,0.00016438,2]
[358986946,1745609433855,-500.92771699,0.00016438,2]
[358986947,1745609433866,-500.0,0.00016438,2]
[358986948,1745609433879,-500.0,0.00016438,2]
[358986949,1745609433890,-500.0,0.00016438,2]
[358986950,1745609433901,-500.0,0.00016438,2]
[358986951,1745609433913,-500.0,0.00016438,2]
[358986952,1745609433925,-489.39939145,0.00016438,2]
[358986953,1745609433937,-509.15203663,0.00016438,2]
[358986954,1745609433948,-500.0,0.00016438,2]
[358986955,1745609433958,-509.44629582,0.00016438,2]
[358986956,1745609433968,-318.31443493,0.00016438,2]
[358986957,1745609433978,-500.0,0.00016438,2]
[358986958,1745609433989,-500.0,0.00016438,2]
[358986959,1745609433999,-500.0,0.00016438,2]
[358986960,1745609434009,-457.28366918,0.00016438,2]
[358986961,1745609434019,-500.0,0.00016438,2]
[358986962,1745609434029,-500.0,0.00016438,2]
[358986963,1745609434038,-151.0,0.00016438,2]
[358986964,1745609434047,-151.0,0.00016438,2]
[358986965,1745609434325,-264.0368,0.00016438,2]
[358986966,1745609434348,-500.0,0.00016438,2]
[358986967,1745609434358,-500.0,0.00016438,2]
[358986968,1745609434368,-500.0,0.00016438,2]
[358986969,1745609434378,-500.0,0.00016438,2]
[358986970,1745609434387,-500.0,0.00016438,2]
[358986971,1745609434397,-372.44852488,0.00016438,2]
[358986972,1745609434415,-133.89081468,0.00016438,2]
[358986973,1745609434425,-500.0,0.00016438,2]
[358986974,1745609434435,-500.0,0.00016438,2]
[358986975,1745609434448,-500.0,0.00016438,2]
[358986976,1745609434458,-500.0,0.00016438,2]
[358986977,1745609434468,-330.10918532,0.00016438,2]
[358987002,1745609438058,-169.89081468,0.00016438,2]
[358987003,1745609438069,-500.0,0.00016438,2]
[358987004,1745609438079,-500.0,0.00016438,2]
[358987005,1745609438090,-197.64061737,0.00016438,2]
[358987006,1745609438102,-302.35938263,0.00016438,2]
[358987007,1745609438112,-481.04747374,0.00016438,2]
[358987008,1745609438123,-18.95252626,0.00016438,2]
[358987009,1745609438133,-343.67445105,0.00016438,2]
[358987011,1745609438153,-156.32554895,0.00016438,2]
[358987012,1745609438163,-500.0,0.00016438,2]
[358987013,1745609438172,-500.0,0.00016438,2]
[358987014,1745609438182,-444.74014178,0.00016438,2]
[358987016,1745609438194,-56.5821177,0.00016438,2]
[358987019,1745609438203,-500.0,0.00016438,2]
[358987021,1745609438212,-500.0,0.00016438,2]
[358987023,1745609438222,-500.0,0.00016438,2]
[358987024,1745609438231,-500.0,0.00016438,2]
[358987025,1745609438241,-500.0,0.00016438,2]
[358987026,1745609438250,-500.0,0.00016438,2]
[358987027,1745609438260,-249.23235415,0.00016438,2]
[358987028,1745609438271,-250.76764585,0.00016438,2]
[358987029,1745609438280,-500.0,0.00016438,2]
[358987030,1745609438290,-500.0,0.00016438,2]
[358987031,1745609438299,-792.64,0.00016438,2]
[358987032,1745609438309,-500.0,0.00016438,2]
[358987033,1745609438320,-500.0,0.00016438,2]
[358987034,1745609438331,-244.12618518,0.00016438,2]
[358987035,1745609438341,-500.0,0.00016438,2]
[358987036,1745609438350,-500.0,0.00016438,2]
[358987037,1745609438362,-500.0,0.00016438,2]
[358987038,1745609438372,-500.0,0.00016438,2]
[358987039,1745609438382,-500.0,0.00016438,2]
[358987040,1745609438393,-184.51985272,0.00016438,2]
[358987041,1745609438402,-500.0,0.00016438,2]
[358987042,1745609438412,-503.17512507,0.00016438,2]
[358987043,1745609438422,-500.0,0.00016438,2]
[358987044,1745609438433,-500.0,0.00016438,2]
[358987045,1745609438442,-500.0,0.00016438,2]
[358987046,1745609438451,-500.0,0.00016438,2]
[358987047,1745609438460,-500.0,0.00016438,2]
[358987048,1745609438469,-500.0,0.00016438,2]
[358987049,1745609438478,-500.0,0.00016438,2]
[358987050,1745609438487,-500.0,0.00016438,2]
[358987051,1745609438497,-500.0,0.00016438,2]
[358987052,1745609438507,-500.0,0.00016438,2]
[358987053,1745609438516,-406.32133075,0.00016438,2]
[358987070,1745609440443,-93.67866925,0.00016438,2]
[358987071,1745609440453,-500.0,0.00016438,2]
[358987072,1745609440463,-500.0,0.00016438,2]
[358987073,1745609440472,-500.0,0.00016438,2]
[358987074,1745609440481,-699.50234873,0.00016438,2]
[358987077,1745609443167,-91.68537827,0.00016438,2]
[358987078,1745609443178,-500.0,0.00016438,2]
[358987079,1745609443187,-210.26635854,0.00016438,2]
[358987080,1745609443197,-791.187727,0.00016438,2]
[358987081,1745609443206,-791.187727,0.00016438,2]
[358987082,1745609443216,-791.187727,0.00016438,2]
[358987083,1745609443226,-791.187727,0.00016438,2]
[358987084,1745609443235,-791.187727,0.00016438,2]
[358987085,1745609443244,-791.187727,0.00016438,2]
[358987086,1745609443254,-500.0,0.00016438,2]
[358987087,1745609443263,-500.0,0.00016438,2]
[358987088,1745609443272,-791.187727,0.00016438,2]
[358987089,1745609443282,-791.187727,0.00016438,2]
[358987091,1745609443291,-791.187727,0.00016438,2]
[358987092,1745609443300,-791.187727,0.00016438,2]
[358987093,1745609443310,-731.85,0.00016438,2]
[358987094,1745609443320,-791.187727,0.00016438,2]
[358987095,1745609443329,-791.187727,0.00016438,2]
[358987096,1745609443338,-791.18773459,0.00016438,2]
[358987097,1745609443348,-500.0,0.00016438,2]
[358987098,1745609443357,-151.0,0.00016438,2]
[358987099,1745609443367,-151.0,0.00016438,2]
[358987100,1745609443376,-500.0,0.00016438,2]
[358987101,1745609443386,-151.0,0.00016438,2]
[358987102,1745609443396,-151.0,0.00016438,2]
[358987104,1745609443405,-500.0,0.00016438,2]
[358987105,1745609443416,-175.195968,0.00016438,2]
[358987106,1745609443426,-500.0,0.00016438,2]
[358987107,1745609443435,-500.0,0.00016438,2]
[358987108,1745609443447,-461.47787114,0.00016438,2]
[358987109,1745609443457,-500.0,0.00016438,2]
[358987110,1745609443468,-500.0,0.00016438,2]
[358987111,1745609443478,-523.71108632,0.00016438,2]
[358987112,1745609443488,-302.91909861,0.00016438,2]
[358987113,1745609443497,-500.0,0.00016438,2]
[358987114,1745609443508,-500.0,0.00016438,2]
[358987115,1745609443517,-500.0,0.00016438,2]
[358987116,1745609443527,-500.0,0.00016438,2]
[358987117,1745609443538,-377.12552487,0.00016438,2]
[358987118,1745609443551,-122.87447513,0.00016438,2]
[358987119,1745609443560,-372.03972268,0.00016438,2]